fUSD/lending_fUSD_20241201
["ID","MTS","AMOUNT","RATE_DAILY","PERIOD"]
[343905167,1733020232801,-150.0,7.998e-05,2]
[343905168,1733020232810,-150.0,7.998e-05,2]
[343905169,1733020232820,-816.0,7.998e-05,2]
[343905170,1733020232830,-968.38,7.998e-05,2]
[343905171,1733020232840,-1990.505,7.998e-05,2]
[343905172,1733020232851,-534.0,7.998e-05,2]
[343905173,1733020232860,-150.0,7.998e-05,2]
[343905174,1733020232870,-633.0,7.998e-05,2]
[343905175,1733020232880,-1280.997,7.999e-05,2]
[343905176,1733020232890,-635.18,7.999e-05,2]
[343905177,1733020232899,-9585.66237868,7.999e-05,2]
[343905178,1733020232909,-41422.61659158,8e-05,2]
[343905179,1733020236096,-778.500005,8e-05,2]
[343905409,1733020238564,-654.06454835,8e-05,2]
[343905411,1733020238577,-7124.30240134,8e-05,2]
[343905418,1733020240510,-9343.50098892,7.808e-05,2]
[343905419,1733020240519,-6080.14697672,8e-05,2]
[343905420,1733020240639,-37178.61493224,8e-05,2]
[343905421,1733020240651,-4813.35,8e-05,2]
[343905427,1733020243446,-3368.09692978,8e-05,2]
[343905428,1733020243458,-46445.27134627,8e-05,2]
[343905429,1733020243473,-6088.02664394,8e-05,2]
[343905430,1733020243485,-3030.31520484,8e-05,2]
[343905431,1733020243496,-2324.53232472,8e-05,2]
[343905432,1733020243508,-7123.20087217,8e-05,2]
[343905433,1733020243769,-6701.38301293,8e-05,2]
[343905434,1733020243781,-103900.51559999,8e-05,2]
[343905445,1733020246397,-420.99123732,8e-05,2]
[343905446,1733020246408,-1433.84483054,8e-05,2]
[343905447,1733020246694,-255.314,7.998e-05,2]
[343905449,1733020246704,-6395.02586292,8e-05,2]
[343905452,1733020246717,-15293.6144517,8e-05,2]
[343905454,1733020246728,-4548.25540185,8e-05,2]
[343905518,1733020798721,23900.0,7.538e-05,2]
[343905519,1733020810291,3267.53,7.565e-05,2]
[343905520,1733020848760,250.0,7.565e-05,2]
[343905521,1733020862985,95070.76541921,7.56e-05,2]
[343905523,1733020896524,170.04,6.242e-05,2]
[343905525,1733020996378,5547.9132608,0.0002,120]
[343905674,1733021262054,-169.69504412,7.379e-05,2]
[343905675,1733021263569,-150.0,7.379e-05,2]
[343905676,1733021264437,-150.0,7.379e-05,2]
[343905677,1733021265251,-150.0,7.379e-05,2]
[343905678,1733021265672,-150.0,7.379e-05,2]
[343905679,1733021266941,-150.0,7.379e-05,2]
[343905680,1733021267449,-150.0,7.379e-05,2]
[343905681,1733021268003,-150.0,7.379e-05,2]
[343905682,1733021268686,-150.0,7.379e-05,2]
[343905683,1733021355093,-300.0,7.378e-05,2]
[343905684,1733021355115,-3290.822312,7.379e-05,2]
[343905692,1733021431750,-300.0,7.378e-05,2]
[343905693,1733021431760,-192.35224046,7.379e-05,2]
[343905694,1733021431772,-495.09835723,7.379e-05,2]
[343905695,1733021431785,-11484.31204619,7.379e-05,2]
[343905696,1733021431795,-200.0,7.499e-05,2]
[343905697,1733021431805,-26241.42866147,7.56e-05,2]
[343905698,1733021431817,-123628.96193135,7.56e-05,2]
[343905699,1733021431830,-4031.88962219,7.56e-05,2]
[343905700,1733021431842,-6700.70082519,7.56e-05,2]
[343905701,1733021431853,-782.1,7.56e-05,2]
[343905702,1733021431864,-19184.0,7.56e-05,2]
[343905703,1733021431876,-278.999997,7.56e-05,2]
[343905704,1733021431947,-374.79225766,7.56e-05,2]
[343905705,1733021431959,-2261.63253183,7.56e-05,2]
[343905706,1733021431971,-10062.61549847,7.56e-05,2]
[343906116,1733021437734,-584.58897803,7.531e-05,2]
[343906117,1733021437746,-929.22831132,7.531e-05,2]
[343906118,1733021437760,-22386.18271065,7.531e-05,2]
[343906119,1733021437770,-2888.96947982,7.56e-05,2]
[343906120,1733021437866,-534.4333347,7.56e-05,2]
[343906121,1733021437888,-1440139.85472111,7.56e-05,2]
[343906122,1733021437898,-4746.67,7.8e-05,2]
[343906123,1733021437907,-500.0,7.802e-05,2]
[343906124,1733021437918,-680.2,7.802e-05,2]
[343906125,1733021437927,-374.53,7.809e-05,2]
[343906126,1733021437936,-150.0,7.973e-05,2]
[343906127,1733021437945,-150.0,7.997e-05,2]
[343906128,1733021437955,-10000.0,7.998e-05,2]
[343906129,1733021437964,-5701.63420082,7.998e-05,2]
[343906130,1733021437975,-4298.36579918,7.998e-05,2]
[343906131,1733021437984,-10000.0,7.998e-05,2]
[343906132,1733021437994,-7827.30944792,7.998e-05,2]
[343906133,1733021438006,-3957.73037272,7.998e-05,2]
[343906134,1733021438016,-150.0,7.998e-05,2]
[343906135,1733021438026,-150.0,7.998e-05,2]
[343906136,1733021438036,-150.0,7.998e-05,2]
[343906137,1733021438046,-150.0,7.998e-05,2]
[343906138,1733021438055,-150.0,7.998e-05,2]
[343906139,1733021438065,-150.0,7.998e-05,2]
[343906140,1733021438074,-150.0,7.998e-05,2]
[343906141,1733021438084,-150.0,7.998e-05,2]
[343906142,1733021438093,-150.0,7.998e-05,2]
[343906143,1733021438103,-150.0,7.998e-05,2]
[343906144,1733021438112,-150.0,7.998e-05,2]
[343906145,1733021438122,-150.0,7.998e-05,2]
[343906146,1733021438132,-150.0,7.998e-05,2]
[343906147,1733021438142,-150.0,7.998e-05,2]
[343906148,1733021438152,-150.0,7.998e-05,2]
[343906149,1733021438161,-150.0,7.998e-05,2]
[343906151,1733021438171,-150.0,7.998e-05,2]
[343906153,1733021438180,-1112.625,7.998e-05,2]
[343906155,1733021438190,-816.0,7.998e-05,2]
[343906156,1733021438200,-534.0,7.998e-05,2]
[343906158,1733021438209,-13696.0,7.998e-05,2]
[343906159,1733021438218,-150.0,7.998e-05,2]
[343906160,1733021438227,-1171.391,7.998e-05,2]
[343906161,1733021438237,-150.0,7.998e-05,2]
[343906162,1733021438247,-608.71,7.999e-05,2]
[343906163,1733021438259,-1024.798,7.999e-05,2]
[343906164,1733021438268,-1735.57137157,7.999e-05,2]
[343906165,1733021438280,-2034.16934155,7.999e-05,2]
[343906166,1733021438292,-2654.96447631,7.999e-05,2]
[343906167,1733021438591,-1240.09023056,7.999e-05,2]
[343906174,1733021439843,-404.10369369,7.379e-05,2]
[343906175,1733021439856,-1920.8,7.379e-05,2]
[343906176,1733021440098,-514.93216356,7.379e-05,2]
[343906177,1733021440109,-175.36878213,7.999e-05,2]
[343906179,1733021443617,-484.06748449,7.499e-05,2]
[343906181,1733021443627,-242159.83579788,7.999e-05,2]
[343906183,1733021443637,-301.82566674,7.999e-05,2]
[343906185,1733021443650,-1224.80891257,8e-05,2]
[343906187,1733021443662,-95944.0,8e-05,2]
[343906190,1733021443849,-8280.29415686,8e-05,2]
[343906191,1733021443868,-1857.9899988,8e-05,2]
[343906192,1733021443880,-7350.77070102,8e-05,2]
[343906193,1733021443891,-1554.83930299,8e-05,2]
[343906194,1733021443903,-8778.63817936,8e-05,2]
[343906195,1733021443915,-10576.1267304,8e-05,2]
[343906196,1733021443926,-58101.06035854,8e-05,2]
[343906198,1733021444068,-16969.54342202,8e-05,2]
[343906200,1733021444080,-3216.42142526,8e-05,2]
[343906202,1733021444091,-1128.66166438,8e-05,2]
[343906224,1733021445794,-924.41802,8e-05,2]
[343906225,1733021445806,-481.28459576,8e-05,2]
[343906226,1733021445817,-1440000.0,8e-05,2]
[343906227,1733021445829,-271853.30548135,8e-05,2]
[343906232,1733021607381,1200.0,0.0002,120]
[343906233,1733021944551,115483.75103595,0.0002,120]
[343906259,1733022631846,-1179.44,7.275e-05,2]
[343906260,1733022631856,-299.62,7.357e-05,2]
[343906261,1733022631866,-1724.67932556,7.357e-05,2]
[343906262,1733022632067,-6013.34502162,7.357e-05,2]
[343906263,1733022632077,-200.0,7.372e-05,2]
[343906264,1733022632087,-250.24856848,7.429e-05,2]
[343906265,1733022632103,-50.21143152,7.429e-05,2]
[343906266,1733022632112,-2903.38398385,7.483e-05,2]
[343906515,1733022640790,-2023.69498297,7.483e-05,2]
[343906517,1733022643821,-17196.59731183,7.483e-05,2]
[343906522,1733022644103,-475.88000018,7.483e-05,2]
[343906523,1733022644115,-1300.44372117,7.483e-05,2]
[343906524,1733022644125,-250.0,7.502e-05,2]
[343906525,1733022644135,-526.95,7.521e-05,2]
[343906526,1733022644144,-420.25,7.55e-05,2]
[343906527,1733022644154,-363.9,7.55e-05,2]
[343906528,1733022644163,-939.11,7.55e-05,2]
[343906529,1733022644173,-363.9,7.55e-05,2]
[343906530,1733022644182,-339.17387667,7.55e-05,2]
[343906531,1733022644195,-451.22612333,7.55e-05,2]
[343906532,1733022644204,-361.02,7.55e-05,2]
[343906533,1733022644214,-150.0,7.649e-05,2]
[343906534,1733022644223,-363.9,7.65e-05,2]
[343906535,1733022644233,-434.88,7.65e-05,2]
[343906536,1733022644243,-434.88,7.65e-05,2]
[343906537,1733022644253,-363.9,7.65e-05,2]
[343906538,1733022644262,-434.88,7.65e-05,2]
[343906539,1733022644272,-363.9,7.65e-05,2]
[343906540,1733022644281,-220.49,7.915e-05,2]
[343906541,1733022644290,-150.0,7.998e-05,2]
[343906542,1733022644299,-150.0,7.998e-05,2]
[343906543,1733022644308,-150.0,7.998e-05,2]
[343906544,1733022644318,-150.0,7.998e-05,2]
[343906545,1733022644328,-150.0,7.998e-05,2]
[343906546,1733022644337,-150.0,7.998e-05,2]
[343906547,1733022644346,-150.0,7.998e-05,2]
[343906548,1733022644356,-150.0,7.998e-05,2]
[343906549,1733022644365,-150.0,7.998e-05,2]
[343906551,1733022644375,-82.4776488,7.998e-05,2]
[343906554,1733022644387,-67.5223512,7.998e-05,2]
[343906556,1733022644397,-150.0,7.998e-05,2]
[343906558,1733022644407,-150.0,7.998e-05,2]
[343906560,1733022644416,-150.0,7.998e-05,2]
[343906562,1733022644426,-150.0,7.998e-05,2]
[343906564,1733022644437,-150.0,7.998e-05,2]
[343906566,1733022644446,-150.0,7.998e-05,2]
[343906568,1733022644456,-150.0,7.998e-05,2]
[343906570,1733022644465,-780.314,7.998e-05,2]
[343906572,1733022644475,-816.0,7.998e-05,2]
[343906574,1733022644484,-534.0,7.998e-05,2]
[343906576,1733022644493,-150.91283337,7.999e-05,2]
[343906578,1733022644503,-985.257,7.999e-05,2]
[343906580,1733022644512,-176.824,7.999e-05,2]
[343906582,1733022644521,-583.35,7.999e-05,2]
[343906584,1733022644531,-325.69609948,7.999e-05,2]
[343906586,1733022644540,-34737.25980383,8e-05,2]
[343906591,1733022644596,-160.59925281,8e-05,2]
[343906592,1733022644608,-3005.40374911,8e-05,2]
[343906593,1733022644620,-8607.8732696,8e-05,2]
[343906658,1733022645813,-43346.37124513,8e-05,2]
[343906663,1733022645827,-1898.13952572,8e-05,2]
[343906668,1733022646054,-2079.99996,8e-05,2]
[343906669,1733022646065,-94123.02084758,8e-05,2]
[343906670,1733022646077,-916.99987,8e-05,2]
[343906671,1733022646088,-2758.3,8e-05,2]
[343906693,1733022793483,226.39,6.291e-05,2]
[343906698,1733022927065,-250.0,7.832e-05,2]
[343906699,1733022927087,-500.0,7.899e-05,2]
[343906700,1733022927112,-150.0,7.998e-05,2]
[343906701,1733022927134,-1096.0,7.998e-05,2]
[343906702,1733022927157,-715.378,7.998e-05,2]
[343906703,1733022927189,-174.7832661,7.999e-05,2]
[343906704,1733022927213,-7113.8387339,7.999e-05,2]
[343906706,1733023128515,896.41384769,7e-05,2]
[343906707,1733023136455,150.0,7e-05,2]
[343906708,1733023136477,150.0,7e-05,2]
[343906709,1733023136498,150.0,7e-05,2]
[343906710,1733023136520,150.0,7e-05,2]
[343906711,1733023136542,150.0,7e-05,2]
[343906712,1733023136563,0.82282962,7e-05,2]
[343906715,1733023428573,150.0,6.005e-05,2]
[343906716,1733023428594,96.16,6.005e-05,2]
[343906718,1733023552854,1200.0,0.00019,30]
[343906719,1733023555090,150.0,6.94e-05,2]
[343906720,1733023555112,150.0,6.94e-05,2]
[343906721,1733023555135,150.0,6.94e-05,2]
[343906722,1733023555156,150.0,6.94e-05,2]
[343906723,1733023555179,264.73221356,6.94e-05,2]
[343906724,1733023555201,800.0,6.94e-05,2]
[343906725,1733023555223,800.0,6.94e-05,2]
[343906726,1733023555252,800.0,6.94e-05,2]
[343906727,1733023555273,800.0,6.94e-05,2]
[343906728,1733023555294,800.0,6.94e-05,2]
[343906729,1733023555337,23483.07485703,6.94e-05,2]
[343906734,1733023573123,1200.0,0.00019,30]
[343906735,1733023594245,910.58605936,0.00019,30]
[343906799,1733023832026,-300.0,7.332e-05,2]
[343906801,1733023832036,-319.69,7.528e-05,2]
[343906802,1733023832046,-177.55,7.537e-05,2]
[343906803,1733023832055,-300.0,7.766e-05,2]
[343906804,1733023832064,-8589.76,7.767e-05,2]
[343906805,1733023832075,-550.0,7.767e-05,2]
[343906806,1733023832256,-766.71121484,7.767e-05,2]
[343906844,1733023838234,-268.28055403,7.767e-05,2]
[343906845,1733023838389,-2384.32608488,7.767e-05,2]
[343906862,1733023840087,-2645.18876052,7.767e-05,2]
[343906865,1733023840100,-3967.2289072,7.767e-05,2]
[343906867,1733023840112,-517.7327593,7.767e-05,2]
[343906884,1733023840267,-4210.77171923,7.767e-05,2]
[343906886,1733023840277,-501.0,7.808e-05,2]
[343906888,1733023840287,-2495.66,7.99e-05,2]
[343906890,1733023840296,-150.0,7.994e-05,2]
[343906892,1733023840306,-10397.29715325,7.995e-05,2]
[343907018,1733023844033,-22126.38811154,7.995e-05,2]
[343907019,1733023844045,-42959.15334731,7.995e-05,2]
[343907020,1733023844082,-347.67820679,7.995e-05,2]
[343907021,1733023844094,-3554.71478178,7.995e-05,2]
[343907022,1733023844106,-614.76839933,7.995e-05,2]
[343907023,1733023844115,-150.0,7.998e-05,2]
[343907024,1733023844125,-150.0,7.998e-05,2]
[343907025,1733023844135,-150.0,7.998e-05,2]
[343907026,1733023844145,-150.0,7.998e-05,2]
[343907027,1733023844155,-150.0,7.998e-05,2]
[343907028,1733023844164,-150.0,7.998e-05,2]
[343907029,1733023844176,-150.0,7.998e-05,2]
[343907030,1733023844185,-150.0,7.998e-05,2]
[343907031,1733023844194,-150.0,7.998e-05,2]
[343907032,1733023844204,-150.0,7.998e-05,2]
[343907033,1733023844213,-150.0,7.998e-05,2]
[343907034,1733023844223,-150.0,7.998e-05,2]
[343907035,1733023844234,-150.0,7.998e-05,2]
[343907036,1733023844243,-150.0,7.998e-05,2]
[343907037,1733023844252,-534.0,7.998e-05,2]
[343907038,1733023844262,-788.205,7.998e-05,2]
[343907039,1733023844271,-25058.96645067,7.999e-05,2]
[343907040,1733023844300,-1685.93120214,7.999e-05,2]
[343907042,1733023845995,-41275.98,7.999e-05,2]
[343907043,1733023846007,-544.85634808,7.999e-05,2]
[343907044,1733023846144,-260.5501795,7.999e-05,2]
[343907047,1733024509106,13689.09,7.124e-05,2]
[343907049,1733024760780,150.0,7.16e-05,2]
[343907050,1733024875561,250.0,7.086e-05,2]
[343907051,1733024897924,-50000.0,0.0002,120]
[343907071,1733025032341,-4340.82,7.168e-05,2]
[343907072,1733025032352,-282.03,7.178e-05,2]
[343907073,1733025032362,-214.44870903,7.228e-05,2]
[343907074,1733025032375,-369.81129097,7.228e-05,2]
[343907075,1733025032385,-497.0,7.441e-05,2]
[343907076,1733025032395,-500.0,7.616e-05,2]
[343907077,1733025032406,-220.5,7.669e-05,2]
[343907078,1733025032415,-251.37161211,7.684e-05,2]
[343907079,1733025032428,-170.18838789,7.684e-05,2]
[343907080,1733025032439,-300.0,7.689e-05,2]
[343907081,1733025032449,-152.38,7.69e-05,2]
[343907082,1733025032460,-150.0,7.69e-05,2]
[343907083,1733025032470,-434.88,7.69e-05,2]
[343907084,1733025032483,-201.8039068,7.69e-05,2]
[343907085,1733025032645,-162.0960932,7.69e-05,2]
[343907086,1733025032655,-333.89826347,7.69e-05,2]
[343907087,1733025032667,-101.15173653,7.69e-05,2]
[343907088,1733025032677,-363.9,7.69e-05,2]
[343907089,1733025032687,-435.05,7.69e-05,2]
[343907090,1733025032698,-150.0,7.69e-05,2]
[343907091,1733025032708,-150.0,7.69e-05,2]
[343907092,1733025032718,-434.88,7.69e-05,2]
[343907093,1733025032728,-434.88,7.69e-05,2]
[343907094,1733025032739,-150.0,7.69e-05,2]
[343907095,1733025032750,-150.0,7.69e-05,2]
[343907096,1733025032761,-363.9,7.69e-05,2]
[343907097,1733025032770,-363.9,7.69e-05,2]
[343907098,1733025032780,-434.88,7.69e-05,2]
[343907099,1733025032791,-150.0,7.753e-05,2]
[343907100,1733025032802,-435.05,7.76e-05,2]
[343907101,1733025032812,-150.0,7.76e-05,2]
[343907102,1733025032823,-434.88,7.76e-05,2]
[343907103,1733025032833,-150.0,7.76e-05,2]
[343907104,1733025032844,-363.9,7.76e-05,2]
[343907105,1733025032854,-442.43,7.78e-05,2]
[343907106,1733025032864,-311.44,7.78e-05,2]
[343907107,1733025032874,-619.6,7.78e-05,2]
[343907108,1733025032884,-500.0,7.836e-05,2]
[343907109,1733025032893,-227.329967,7.84e-05,2]
[343907110,1733025032903,-1000.0,7.9e-05,2]
[343907111,1733025032913,-150.0,7.986e-05,2]
[343907112,1733025032923,-150.0,7.997e-05,2]
[343907113,1733025032933,-1260.0,7.998e-05,2]
[343907114,1733025032942,-566.0,7.998e-05,2]
[343907115,1733025032952,-150.0,7.998e-05,2]
[343907117,1733025032962,-2000.0,7.998e-05,2]
[343907118,1733025032971,-630.0,7.998e-05,2]
[343907120,1733025032982,-562.0,7.998e-05,2]
[343907122,1733025032992,-1933.0,7.998e-05,2]
[343907123,1733025033002,-3757.0,7.998e-05,2]
[343907124,1733025033012,-1269.334,7.998e-05,2]
[343907125,1733025033021,-816.0,7.998e-05,2]
[343907126,1733025033031,-3524.0,7.998e-05,2]
[343907127,1733025033042,-979.0,7.998e-05,2]
[343907128,1733025033052,-534.0,7.998e-05,2]
[343907129,1733025033062,-282.772,7.998e-05,2]
[343907130,1733025033072,-200.0,7.998e-05,2]
[343907131,1733025033082,-150.0,7.998e-05,2]
[343907132,1733025033094,-150.0,7.998e-05,2]
[343907133,1733025033104,-557.276,7.998e-05,2]
[343907134,1733025033114,-150.0,7.998e-05,2]
[343907135,1733025033125,-150.0,7.998e-05,2]
[343907136,1733025033135,-150.0,7.998e-05,2]
[343907137,1733025033146,-150.0,7.998e-05,2]
[343907138,1733025033156,-150.0,7.998e-05,2]
[343907139,1733025033167,-150.0,7.998e-05,2]
[343907140,1733025033179,-150.0,7.998e-05,2]
[343907141,1733025033189,-150.0,7.998e-05,2]
[343907142,1733025033199,-150.0,7.998e-05,2]
[343907143,1733025033209,-150.0,7.998e-05,2]
[343907144,1733025033219,-150.0,7.998e-05,2]
[343907145,1733025033232,-150.0,7.998e-05,2]
[343907146,1733025033242,-150.0,7.998e-05,2]
[343907147,1733025033253,-150.0,7.998e-05,2]
[343907148,1733025033263,-150.0,7.998e-05,2]
[343907149,1733025033273,-630.564,7.998e-05,2]
[343907150,1733025033284,-579.87,7.999e-05,2]
[343907151,1733025033296,-1745.64214611,7.999e-05,2]
[343907152,1733025033309,-12954.90002221,7.999e-05,2]
[343907157,1733025038328,-159.87020823,7.973e-05,2]
[343907158,1733025038337,-3128.75076567,7.999e-05,2]
[343907161,1733025040556,-536.5558275,7.999e-05,2]
[343907162,1733025040570,-4071.89955152,7.999e-05,2]
[343907163,1733025040582,-2220.61099998,7.999e-05,2]
[343907187,1733025043275,-1432.30532102,7.999e-05,2]
[343907189,1733025043541,-49564.55277428,7.999e-05,2]
[343907190,1733025043843,-1340.22120777,7.999e-05,2]
[343907193,1733025043855,-4741.36395352,7.999e-05,2]
[343907220,1733025046560,-4814.46809525,7.999e-05,2]
[343907221,1733025046763,-4565.04563354,7.999e-05,2]
[343907222,1733025205803,411.83879824,0.0001899,30]
[343907223,1733025211265,-65000.0,0.0002,120]
[343907252,1733026232369,-250.0,7.661e-05,2]
[343907253,1733026232379,-337.24,7.661e-05,2]
[343907254,1733026232389,-179.24,7.7e-05,2]
[343907255,1733026232399,-364.58189079,7.7e-05,2]
[343907256,1733026232409,-150.0,7.997e-05,2]
[343907257,1733026232419,-222.16236448,7.998e-05,2]
[343907258,1733026232435,-343.83763552,7.998e-05,2]
[343907259,1733026232445,-1260.0,7.998e-05,2]
[343907260,1733026232456,-630.0,7.998e-05,2]
[343907261,1733026232466,-2000.0,7.998e-05,2]
[343907262,1733026232476,-100.03177147,7.998e-05,2]
[343907263,1733026232495,-49.96822853,7.998e-05,2]
[343907264,1733026232505,-268.87134909,7.998e-05,2]
[343907270,1733026238397,-1660.12865091,7.998e-05,2]
[343907271,1733026238407,-313.5552936,7.998e-05,2]
[343907272,1733026238553,-248.4447064,7.998e-05,2]
[343907273,1733026238562,-3755.0,7.998e-05,2]
[343907274,1733026238572,-536.73412353,7.998e-05,2]
[343907304,1733026240187,-725.26587647,7.998e-05,2]
[343907305,1733026240198,-816.0,7.998e-05,2]
[343907306,1733026240208,-260.6641235,7.998e-05,2]
[343907313,1733026243222,-716.3358765,7.998e-05,2]
[343907314,1733026243232,-3520.0,7.998e-05,2]
[343907315,1733026243241,-534.0,7.998e-05,2]
[343907316,1733026243252,-150.0,7.998e-05,2]
[343907317,1733026243260,-504.451,7.998e-05,2]
[343907318,1733026243269,-13286.80375646,7.999e-05,2]
[343907319,1733026243328,-2995.68122802,7.999e-05,2]
[343907320,1733026243340,-9197.67373203,7.999e-05,2]
[343907321,1733026243351,-5988.15001946,7.999e-05,2]
[343907347,1733026509737,1001.30364087,0.00018999,30]
[343907394,1733027432563,-179.24,7.384e-05,2]
[343907395,1733027432573,-250.0,7.519e-05,2]
[343907396,1733027432584,-500.0,7.616e-05,2]
[343907397,1733027432593,-500.0,7.616e-05,2]
[343907398,1733027432603,-317.11,7.647e-05,2]
[343907399,1733027432612,-300.0,7.899e-05,2]
[343907400,1733027432622,-300.0,7.9e-05,2]
[343907401,1733027432631,-17893.98,7.9e-05,2]
[343907402,1733027432871,-150.0,7.997e-05,2]
[343907403,1733027432880,-562.0,7.998e-05,2]
[343907404,1733027432890,-3774.679,7.998e-05,2]
[343907405,1733027432900,-1269.078,7.998e-05,2]
[343907406,1733027432909,-688.97743811,7.998e-05,2]
[343907407,1733027432921,-128.02256189,7.998e-05,2]
[343907408,1733027432931,-534.0,7.998e-05,2]
[343907409,1733027432942,-1257.0,7.998e-05,2]
[343907410,1733027432951,-563.0,7.998e-05,2]
[343907411,1733027432961,-633.0,7.998e-05,2]
[343907412,1733027432971,-5952.09366608,7.998e-05,2]
[343907413,1733027432983,-1235.02155016,7.998e-05,2]
[343907414,1733027432993,-150.0,7.998e-05,2]
[343907415,1733027433003,-150.0,7.998e-05,2]
[343907416,1733027433014,-150.0,7.998e-05,2]
[343907417,1733027433024,-150.0,7.998e-05,2]
[343907418,1733027433034,-150.0,7.998e-05,2]
[343907419,1733027433044,-150.0,7.998e-05,2]
[343907420,1733027433054,-150.0,7.998e-05,2]
[343907421,1733027433064,-150.0,7.998e-05,2]
[343907422,1733027433074,-150.0,7.998e-05,2]
[343907423,1733027433084,-150.0,7.998e-05,2]
[343907424,1733027433098,-150.0,7.998e-05,2]
[343907425,1733027433108,-150.0,7.998e-05,2]
[343907426,1733027433117,-150.0,7.998e-05,2]
[343907427,1733027433128,-150.0,7.998e-05,2]
[343907428,1733027433138,-150.0,7.998e-05,2]
[343907429,1733027433147,-817.737,7.998e-05,2]
[343907430,1733027433157,-1897.67024917,7.999e-05,2]
[343907432,1733027433196,-3093.51452699,7.999e-05,2]
[343907463,1733027438424,-24513.72448062,7.999e-05,2]
[343907486,1733027440328,-150.0,7.998e-05,2]
[343907487,1733027440337,-2453.69189403,7.999e-05,2]
[343907488,1733027440349,-1305.50759233,7.999e-05,2]
[343907489,1733027440369,-3457.86965299,7.999e-05,2]
[343907490,1733027440482,-2729.70814854,7.999e-05,2]
[343907491,1733027440494,-499.7582014,7.999e-05,2]
[343907492,1733027440608,-300.0,7.999e-05,2]
[343907493,1733027440627,-10012.3729844,7.999e-05,2]
[343907498,1733027443375,-37181.12191268,7.999e-05,2]
[343907499,1733027443435,-39970.43532251,7.999e-05,2]
[343907500,1733027443447,-555.71,7.999e-05,2]
[343907501,1733027443457,-2457.54,7.999e-05,2]
[343907502,1733027443467,-21072.01377749,8e-05,2]
[343907503,1733027443547,-8424.52130946,8e-05,2]
[343907504,1733027443605,-1302.7649999,8e-05,2]
[343907505,1733027443712,-7038.80700636,8e-05,2]
[343907506,1733027443724,-2022.98485753,8e-05,2]
[343907509,1733027446356,-630.0,7.998e-05,2]
[343907510,1733027446366,-5873.19173614,8e-05,2]
[343907511,1733027446389,-135000.017125,8e-05,2]
[343907512,1733027446522,-24333.60554926,8e-05,2]
[343907513,1733027446534,-3187.88732942,8e-05,2]
[343907514,1733027446589,-522.01898272,8e-05,2]
[343907515,1733027446694,-1564.21538,8e-05,2]
[343907560,1733028631495,-269.79,7.723e-05,2]
[343907561,1733028631505,-238.79604931,7.9e-05,2]
[343907562,1733028631517,-1877.78315069,7.9e-05,2]
[343907563,1733028631526,-150.0,7.972e-05,2]
[343907564,1733028631537,-4476.37767538,7.973e-05,2]
[343907565,1733028631713,-1011.13253542,7.973e-05,2]
[343907566,1733028631729,-2632.11844528,7.973e-05,2]
[343907567,1733028631741,-1052.6957695,7.973e-05,2]
[343907633,1733028637667,-39486.67557442,7.973e-05,2]
[343907634,1733028637677,-150.0,7.973e-05,2]
[343907635,1733028637687,-500.94482123,7.973e-05,2]
[343907636,1733028637697,-579.9064751,7.973e-05,2]
[343907637,1733028637706,-161.43525294,7.973e-05,2]
[343907638,1733028637717,-208.7467021,7.973e-05,2]
[343907639,1733028637729,-159.86537733,7.973e-05,2]
[343907640,1733028637739,-534.19796292,7.973e-05,2]
[343907641,1733028637749,-513.86262046,7.99e-05,2]
[343907642,1733028637760,-1671.672,7.998e-05,2]
[343907643,1733028637772,-816.0,7.998e-05,2]
[343907644,1733028637782,-534.0,7.998e-05,2]
[343907645,1733028637792,-150.0,7.998e-05,2]
[343907646,1733028637802,-150.0,7.998e-05,2]
[343907647,1733028637812,-250.0,7.998e-05,2]
[343907648,1733028637823,-150.0,7.998e-05,2]
[343907649,1733028637833,-150.0,7.998e-05,2]
[343907650,1733028637844,-150.0,7.998e-05,2]
[343907651,1733028637854,-150.0,7.998e-05,2]
[343907652,1733028637864,-150.0,7.998e-05,2]
[343907653,1733028637873,-150.0,7.998e-05,2]
[343907654,1733028637883,-150.0,7.998e-05,2]
[343907655,1733028637893,-150.0,7.998e-05,2]
[343907656,1733028637906,-150.0,7.998e-05,2]
[343907657,1733028637916,-150.0,7.998e-05,2]